fUST/lending_fUST_20250404
["ID","MTS","AMOUNT","RATE_DAILY","PERIOD"]
[357089238,1743707432996,-605.48,0.00014246,2]
[357089239,1743707433006,-500.0,0.00014246,2]
[357089240,1743707433016,-152.0,0.00014254,2]
[357089241,1743707433025,-151.0,0.00014411,2]
[357089242,1743707433035,-435.21780723,0.00014419,2]
[357089243,1743707433048,-500.0,0.00014419,2]
[357089244,1743707433058,-468.52858511,0.00014419,2]
[357089245,1743707433068,-96984.55432731,0.0001442,2]
[357089246,1743707433078,-500.0,0.00014473,2]
[357089247,1743707433088,-500.0,0.0001452,2]
[357089248,1743707433097,-373.99397009,0.0001452,2]
[357089249,1743707433107,-267.60506313,0.0001452,2]
[357089250,1743707433118,-500.0,0.0001452,2]
[357089251,1743707433128,-831.63,0.0001452,2]
[357089252,1743707433139,-500.0,0.0001452,2]
[357089253,1743707433149,-500.0,0.0001452,2]
[357089254,1743707433159,-605.48,0.0001452,2]
[357089255,1743707433169,-500.0,0.0001452,2]
[357089256,1743707433179,-500.0,0.00014794,2]
[357089257,1743707433189,-500.0,0.00014794,2]
[357089258,1743707433200,-831.63,0.00014794,2]
[357089259,1743707433210,-500.0,0.00014794,2]
[357089260,1743707433221,-500.0,0.00014794,2]
[357089261,1743707433234,-605.48,0.00014794,2]
[357089262,1743707433246,-500.0,0.00014794,2]
[357089263,1743707433256,-530.60329494,0.00014885,2]
[357089264,1743707433268,-420.0,0.0001501,2]
[357089265,1743707433280,-2794.94277802,0.00015024,2]
[357089266,1743707433291,-500.0,0.00015068,2]
[357089267,1743707433302,-500.0,0.00015068,2]
[357089268,1743707433318,-831.63,0.00015068,2]
[357089269,1743707433330,-500.0,0.00015068,2]
[357089270,1743707433341,-490.8708645,0.00015068,2]
[357089271,1743707433352,-605.48,0.00015068,2]
[357089272,1743707433364,-500.0,0.00015068,2]
[357089273,1743707433375,-500.0,0.00015342,2]
[357089274,1743707433386,-500.0,0.00015342,2]
[357089275,1743707433399,-831.63,0.00015342,2]
[357089276,1743707433410,-500.0,0.00015342,2]
[357089277,1743707433421,-605.48,0.00015342,2]
[357089278,1743707433433,-500.0,0.00015342,2]
[357089279,1743707433444,-500.0,0.0001535,2]
[357089280,1743707433455,-500.0,0.00015406,2]
[357089281,1743707433465,-500.0,0.00015616,2]
[357089282,1743707433483,-500.0,0.00015616,2]
[357089283,1743707433494,-831.63,0.00015616,2]
[357089284,1743707433505,-500.0,0.00015616,2]
[357089285,1743707433516,-605.48,0.00015616,2]
[357089286,1743707433529,-500.0,0.00015616,2]
[357089287,1743707433540,-500.0,0.00015674,2]
[357089288,1743707433551,-500.0,0.00015674,2]
[357089289,1743707433561,-500.0,0.00015674,2]
[357089290,1743707433572,-500.0,0.00015674,2]
[357089291,1743707433582,-500.0,0.00015674,2]
[357089292,1743707433592,-500.0,0.00015674,2]
[357089293,1743707433603,-500.0,0.00015674,2]
[357089294,1743707433614,-500.0,0.00015674,2]
[357089295,1743707433625,-500.0,0.00015674,2]
[357089296,1743707433635,-151.0,0.0001578,2]
[357089297,1743707433645,-500.0,0.00015881,2]
[357089298,1743707433655,-344.80900472,0.00015881,2]
[357089299,1743707433666,-150.0,0.00015882,2]
[357089300,1743707433676,-542.0,0.00015882,2]
[357089301,1743707433686,-1553.0,0.00015882,2]
[357089302,1743707433696,-2257.077,0.00015882,2]
[357089303,1743707433706,-500.0,0.0001589,2]
[357089304,1743707433716,-500.0,0.0001589,2]
[357089305,1743707433728,-831.63,0.0001589,2]
[357089306,1743707433739,-500.0,0.0001589,2]
[357089307,1743707433750,-605.48,0.0001589,2]
[357089308,1743707433760,-355.80316116,0.0001589,2]
[357089309,1743707433770,-500.0,0.00016164,2]
[357089310,1743707433780,-500.0,0.00016164,2]
[357089311,1743707433790,-831.63,0.00016164,2]
[357089312,1743707433801,-500.0,0.00016164,2]
[357089313,1743707433811,-605.48,0.00016164,2]
[357089314,1743707433821,-150.0,0.00016204,2]
[357089315,1743707433831,-150.0,0.00016204,2]
[357089316,1743707433842,-150.0,0.00016204,2]
[357089317,1743707433852,-150.0,0.00016204,2]
[357089318,1743707433862,-178.139,0.00016438,2]
[357089319,1743707433872,-185.48,0.00016438,2]
[357089320,1743707433883,-500.0,0.00016438,2]
[357089321,1743707433892,-831.63,0.00016438,2]
[357089322,1743707433902,-612.83041275,0.00016438,2]
[357089323,1743707433912,-605.48,0.00016438,2]
[357089324,1743707433922,-587.0,0.0001645,2]
[357089325,1743707433933,-500.0,0.00016712,2]
[357089326,1743707433943,-831.63,0.00016712,2]
[357089327,1743707433953,-605.48,0.00016712,2]
[357089328,1743707433963,-394.23561618,0.000168,2]
[357089329,1743707433974,-1408.31358126,0.00016815,2]
[357089330,1743707433983,-781.25,0.00016953,2]
[357089331,1743707433993,-160.0,0.00016953,2]
[357089332,1743707434003,-160.0,0.00016953,2]
[357089333,1743707434012,-12517.44636928,0.00016953,2]
[357089334,1743707434021,-419.04650234,0.00016953,2]
[357089335,1743707434031,-160.0,0.00016953,2]
[357089336,1743707434041,-315.7590421,0.00016986,2]
[357089337,1743707434050,-831.63,0.00016986,2]
[357089338,1743707434060,-605.48,0.00016986,2]
[357089339,1743707434070,-500.0,0.00017092,2]
[357089340,1743707434079,-500.0,0.00017092,2]
[357089341,1743707434089,-323.56009542,0.00017121,2]
[357089342,1743707434098,-354.0,0.00017121,2]
[357089343,1743707434108,-178.56794436,0.00017121,2]
[357089344,1743707434117,-151.0,0.00017149,2]
[357089345,1743707434126,-500.0,0.00017187,2]
[357089346,1743707434135,-500.0,0.00017187,2]
[357089347,1743707434145,-500.0,0.00017187,2]
[357089348,1743707434154,-500.0,0.00017187,2]
[357089349,1743707434164,-200.0,0.00017204,2]
[357089350,1743707434174,-151.0,0.00017204,2]
[357089351,1743707434184,-151.0,0.00017204,2]
[357089352,1743707434194,-151.0,0.00017204,2]
[357089353,1743707434204,-831.63,0.0001726,2]
[357089354,1743707434214,-605.48,0.0001726,2]
[357089355,1743707434224,-831.63,0.00017534,2]
[357089356,1743707434234,-605.48,0.00017534,2]
[357089357,1743707434243,-1451.76804734,0.00017639,2]
[357089358,1743707434253,-480.77832851,0.00017674,2]
[357089359,1743707434263,-781.25,0.00017738,3]
[357089360,1743707434272,-160.0,0.00017738,3]
[357089361,1743707434282,-12517.44636928,0.00017739,3]
[357089362,1743707434291,-1000.0,0.00017739,2]
[357089363,1743707434300,-1000.0,0.00017739,2]
[357089364,1743707434310,-41554.19918572,0.0001774,4]
[357089378,1743707438273,-1309.15332083,0.00012555,2]
[357089379,1743707438284,-401.0,0.00015882,2]
[357089380,1743707438295,-5493.62375698,0.0001774,4]
[357089381,1743707438308,-2952.1770573,0.0001774,4]
[357089382,1743707438318,-1000.0,0.0001774,2]
[357089383,1743707438331,-1000.0,0.0001774,2]
[357089384,1743707438341,-831.63,0.00017808,2]
[357089385,1743707438352,-605.48,0.00017808,2]
[357089386,1743707438363,-800.0,0.00018,7]
[357089387,1743707438375,-800.0,0.00018,3]
[357089389,1743707438385,-823.0,0.00018027,2]
[357089390,1743707438396,-831.63,0.00018082,2]
[357089391,1743707438407,-605.48,0.00018082,2]
[357089392,1743707438417,-1000.0,0.00018219,2]
[357089393,1743707438428,-243.97484825,0.00018219,2]
[357089394,1743707438440,-756.02515175,0.00018219,2]
[357089395,1743707438450,-243.97484825,0.00018356,2]
[357089396,1743707438463,-587.65515175,0.00018356,2]
[357089397,1743707438473,-605.48,0.00018356,2]
[357089398,1743707438486,-4500.0,0.000184,2]
[357089399,1743707438496,-151.0,0.00018518,2]
[357089400,1743707438506,-207.4,0.00018573,2]
[357089401,1743707438516,-831.63,0.0001863,2]
[357089402,1743707438525,-605.48,0.0001863,2]
[357089403,1743707438535,-14663.06421828,0.0001874,4]
[357089404,1743707438547,-2093.27865067,0.0001874,4]
[357089496,1743707440646,-200.0,0.00017204,2]
[357089498,1743707440657,-124.97025148,0.0001874,4]
[357089521,1743707442850,-850.41025125,0.0001874,4]
[357089522,1743707442863,-2416.58911568,0.0001874,4]
[357089523,1743707442875,-29851.68751264,0.0001874,4]
[357089524,1743707442885,-1000.0,0.0001874,2]
[357089525,1743707442895,-1000.0,0.0001874,2]
[357089526,1743707442905,-150.0,0.00018882,2]
[357089527,1743707442915,-423.26740247,0.00018882,2]
[357089546,1743707446491,-1504.56403007,0.00018553,2]
[357089547,1743707446501,-207.4,0.00018573,2]
[357089548,1743707446511,-118.73259753,0.00018882,2]
[357089549,1743707446521,-1553.0,0.00018882,2]
[357089550,1743707446530,-707.60570776,0.00018882,2]
[357089823,1743708632700,-2099.171153,0.00012848,2]
[357089824,1743708632711,-261.0142614,0.00013083,2]
[357089825,1743708632721,-300.0,0.00013587,2]
[357089826,1743708632736,-24900.0,0.00013588,2]
[357089827,1743708632748,-250.0,0.00013657,2]
[357089828,1743708632758,-169.13456066,0.00013698,2]
[357089829,1743708632767,-500.0,0.00013698,2]
[357089830,1743708632779,-218.2671099,0.00013698,2]
[357089835,1743708638340,-281.7328901,0.00013698,2]
[357089836,1743708638351,-322.41891597,0.00013698,2]
[357089837,1743708638363,-177.58108403,0.00013698,2]
[357089838,1743708638373,-500.0,0.00013698,2]
[357089839,1743708638384,-236.099055,0.00013698,2]
[357089840,1743708638396,-263.900945,0.00013698,2]
[357089841,1743708638405,-595.08024676,0.00013698,2]
[357089842,1743708638415,-37740.07961662,0.00013698,2]
[357089843,1743708638425,-399.219997,0.00013699,2]
[357089844,1743708638434,-500.0,0.00013972,2]
[357089845,1743708638444,-500.0,0.00013972,2]
[357089846,1743708638453,-467.1687382,0.00014,2]
[357089847,1743708638463,-495.65953305,0.00014246,2]
[357089848,1743708638475,-4.34046695,0.00014246,2]
[357089849,1743708638485,-500.0,0.00014246,2]
[357089850,1743708638494,-500.0,0.0001452,2]
[357089851,1743708638504,-500.0,0.0001452,2]
[357089852,1743708638513,-151.0,0.00014776,2]
[357089853,1743708638522,-500.0,0.00014794,2]
[357089854,1743708638533,-500.0,0.00014794,2]
[357089855,1743708638543,-333.83309774,0.00014885,2]
[357089856,1743708638553,-420.0,0.00014892,2]
[357089857,1743708638563,-500.0,0.00015068,2]
[357089858,1743708638573,-527.53306211,0.00015068,2]
[357089859,1743708638583,-198.96397308,0.0001516,7]
[357089860,1743708638592,-500.0,0.00015342,2]
[357089861,1743708638603,-507.2048184,0.00015496,2]
[357089862,1743708638613,-500.0,0.00015616,2]
[357089863,1743708638623,-500.0,0.0001589,2]
[357089864,1743708638633,-151.0,0.00016145,2]
[357089865,1743708638643,-500.0,0.00016164,2]
[357089866,1743708638652,-587.0,0.00016322,2]
[357089867,1743708638662,-2257.0,0.00016421,2]
[357089868,1743708638672,-1553.0,0.00016421,2]
[357089869,1743708638682,-150.0,0.00016421,2]
[357089870,1743708638692,-500.0,0.00016438,2]
[357089871,1743708638703,-500.0,0.00016712,2]
[357089872,1743708638714,-419.04650234,0.0001689,2]
[357089873,1743708638724,-160.0,0.0001689,2]
[357089874,1743708638734,-500.0,0.00016986,2]
[357089875,1743708638744,-200.0,0.00017204,2]
[357089876,1743708638755,-500.0,0.0001726,2]
[357089877,1743708638766,-151.0,0.00017514,2]
[357089878,1743708638776,-500.0,0.00017534,2]
[357089879,1743708638786,-500.0,0.00017808,2]
[357089880,1743708638796,-823.0,0.00017889,2]
[357089881,1743708638811,-6097.20409335,0.000179,2]
[357089883,1743708638821,-6097.20409325,0.000179,2]
[357089884,1743708638830,-6097.20409325,0.000179,2]
[357089885,1743708638840,-500.0,0.00018082,2]
[357089886,1743708638850,-6097.20409325,0.0001821,2]
[357089887,1743708638860,-619.8173002,0.00018315,2]
[357089888,1743708638871,-500.0,0.00018356,2]
[357089889,1743708638884,-207.4,0.00018573,2]
[357089890,1743708638894,-160.0,0.00018608,2]
[357089891,1743708638903,-12517.44636928,0.00018608,2]
[357089892,1743708638912,-781.25,0.00018608,2]
[357089893,1743708638922,-160.0,0.00018623,2]
[357089894,1743708638932,-500.0,0.0001863,2]
[357089895,1743708638941,-10688.4805,0.0001874,2]
[357089896,1743708638951,-500.0,0.00018873,2]
[357089897,1743708638960,-2200.0,0.00018882,2]
[357089898,1743708638970,-151.0,0.00018883,2]
[357089899,1743708638979,-591.36630331,0.00018899,2]
[357089900,1743708638991,-781.25,0.000189,3]
[357089901,1743708639001,-160.0,0.000189,3]
[357089902,1743708639011,-22609.19108089,0.000189,3]
[357089903,1743708639021,-57695.85319831,0.000189,3]
[357089904,1743708639033,-3474.742802,0.000189,3]
[357089905,1743708639050,-3474.74280228,0.000189,3]
[357089986,1743708640788,-37780.39569188,0.000189,3]
[357089987,1743708640798,-11022.78576823,0.000189,3]
[357089988,1743708640808,-5000.0,0.000189,2]
[357089989,1743708640818,-30975.95297785,0.000189,2]
[357089990,1743708640830,-29828.06060542,0.000189,2]
[357089997,1743708643440,-539.43999999,0.000189,2]
[357089998,1743708643496,-511.62726809,0.000189,2]
[357090007,1743708646549,-82037.5,0.000189,2]
[357090008,1743708646561,-39166.52953459,0.000189,2]
[357090009,1743708646573,-1051.37158526,0.000189,2]
[357090010,1743708646596,-39064.48385918,0.000189,2]
[357090101,1743709833014,-513.7452135,0.00015699,2]
[357090103,1743709833024,-199.609998,0.00015739,2]
[357090105,1743709833034,-1776.85463601,0.00015834,2]
[357090107,1743709833046,-304.73749539,0.00015834,2]
[357090109,1743709833056,-150.0,0.00016585,2]
[357090111,1743709833067,-278.23937901,0.00016585,2]
[357090113,1743709833083,-263.76062099,0.00016585,2]
[357090115,1743709833093,-2257.0,0.00016585,2]
[357090117,1743709833102,-1421.24259241,0.00016585,2]
[357090216,1743709841020,-131.75740759,0.00016585,2]
[357090217,1743709841031,-401.0,0.00016585,2]
[357090218,1743709841041,-133.05964457,0.00016585,2]
[357090225,1743709843701,-45.07935543,0.00016585,2]
[357090226,1743709843714,-500.0,0.00016597,2]
[357090227,1743709843724,-11578.82059926,0.00016598,2]
[357090236,1743709846799,-500.0,0.00016597,2]
[357090237,1743709846809,-6317.33,0.00016598,2]
[357090238,1743709846822,-6536.15502104,0.00016598,2]
[357090239,1743709846832,-500.0,0.00016871,2]
[357090240,1743709846843,-160.0,0.00016878,2]
[357090241,1743709846854,-160.0,0.00016878,2]
[357090242,1743709846865,-484.97070592,0.00016878,2]
[357090319,1743710854139,-199.6099992,0.00015584,2]
[357090320,1743710854161,-227.5655574,0.00015686,2]
[357090321,1743710854183,-176.53903026,0.00016484,2]
[357090322,1743710854205,-199.0738769,0.00016485,2]
[357090323,1743710854227,-300.0,0.00016583,2]
[357090324,1743710854252,-468.94049848,0.00016583,2]
[357090325,1743710854275,-500.0,0.00016583,2]
[357090326,1743710854297,-500.0,0.00016583,2]
[357090327,1743710854319,-439.06350893,0.00016583,2]
[357090328,1743710854340,-15892.34548933,0.00016584,3]
[357090329,1743710854363,-67359.5253868,0.00016584,3]
[357090365,1743711031997,-300.0,0.00016583,2]
[357090366,1743711032007,-9927.50816075,0.00016584,3]
[357090367,1743711032019,-810.21005594,0.00016584,3]
[357090382,1743711037762,-1779.72815259,0.00016584,3]
[357090383,1743711037772,-781.25,0.00016584,3]
[357090384,1743711037781,-160.0,0.00016584,3]
[357090385,1743711037791,-500.0,0.00016584,2]
[357090386,1743711037801,-200.0,0.00016584,10]
[357090387,1743711037811,-200.0,0.00016584,10]
[357090388,1743711037820,-155.730029,0.00016584,10]
[357090389,1743711037830,-50000.0,0.00016585,2]
[357090390,1743711037839,-150.0,0.00016585,2]
[357090391,1743711037848,-150.0,0.00016585,2]
[357090392,1743711037858,-150.0,0.00016585,2]
[357090393,1743711037868,-150.0,0.00016585,2]
[357090394,1743711037879,-150.0,0.00016585,2]
[357090395,1743711037889,-150.149,0.00016585,2]
[357090396,1743711037899,-150.0,0.00016585,2]
[357090397,1743711037908,-542.0,0.00016585,2]
[357090398,1743711037918,-456.0,0.00016585,2]
[357090399,1743711037927,-2257.0,0.00016585,2]
[357090400,1743711037937,-500.0,0.00016596,2]
[357090401,1743711037946,-500.0,0.00016596,2]
[357090402,1743711037955,-500.0,0.00016597,2]
[357090403,1743711037965,-401.0,0.0001664,2]
[357090404,1743711037975,-500.0,0.00016858,2]
[357090405,1743711037984,-160.0,0.00016874,2]
[357090406,1743711037994,-781.25,0.00016875,2]
[357090407,1743711038004,-12517.44636928,0.00016878,2]
[357090408,1743711038014,-160.0,0.00016878,2]
[357090409,1743711038023,-158.38,0.00017132,2]
[357090410,1743711038032,-5390.24032941,0.000178,2]
[357090411,1743711038042,-5390.2403293,0.00017934,2]
[357090412,1743711038051,-420.0,0.0001812,2]
[357090413,1743711038061,-821.5,0.00018268,7]
[357090414,1743711038071,-160.0,0.00018295,2]
[357090415,1743711038080,-419.04650234,0.00018309,2]
[357090416,1743711038090,-760.4258293,0.00018333,2]
[357090417,1743711038100,-503.80431816,0.00018673,2]
[357090418,1743711038109,-188.0,0.00018688,2]
[357090419,1743711038119,-200.0,0.00018688,2]
[357090420,1743711038128,-413.95641231,0.00018698,2]
[357090421,1743711038139,-160.0,0.00018699,3]
[357090422,1743711038149,-7946.17274466,0.00018699,3]
[357090423,1743711038159,-38369.39944474,0.00018699,3]
[357090424,1743711038168,-234148.13659075,0.00018699,2]
[357090425,1743711038180,-807.97253949,0.00018699,2]
[357090426,1743711038192,-3068.342327,0.00018699,2]
[357090474,1743711045970,-419.04650234,0.00018295,2]
[357090475,1743711045980,-57979.99944685,0.00018699,2]
[357090476,1743711046023,-1937.0,0.00018699,2]
[357090483,1743711579885,276.67,0.00010959,2]
[357090484,1743711590428,230.56,0.00010959,2]
[357090485,1743711601033,192.13,0.00010959,2]
[357090486,1743711611737,160.11,0.00010959,2]
[357090487,1743711622293,800.56,0.00010959,2]
[357090536,1743712043134,-176.849,0.00015942,2]
[357090537,1743712043157,-500.0,0.00016559,2]
[357090538,1743712043179,-300.0,0.00016559,2]
[357090539,1743712043200,-1019.13727764,0.0001656,2]
[357090603,1743712232196,-300.0,0.00016559,2]
[357090604,1743712232206,-800.0,0.0001656,2]
[357090622,1743712237943,-23080.86272236,0.0001656,2]
[357090623,1743712237953,-2108.90485314,0.00016751,2]
[357090624,1743712237963,-1490.78,0.00016851,2]
[357090625,1743712237973,-2257.0,0.00016851,2]
[357090626,1743712237982,-150.0,0.00016851,2]
[357090627,1743712237992,-160.0,0.00016876,2]
[357090628,1743712238002,-12517.44636928,0.00016876,2]
[357090629,1743712238012,-160.0,0.00016876,2]
[357090630,1743712238022,-419.04650234,0.00016876,2]
[357090631,1743712238032,-15269.03872211,0.00016876,2]
[357090632,1743712238041,-420.0,0.00018094,2]
[357090633,1743712238051,-681.2357645,0.00018333,2]
[357090634,1743712238061,-781.25,0.0001845,2]
[357090635,1743712238071,-418.63835924,0.00018598,2]
[357090636,1743712238081,-500.0,0.00018598,2]
[357090638,1743712238090,-500.0,0.00018598,2]
[357090639,1743712238100,-500.0,0.00018598,2]
[357090640,1743712238110,-553.98392433,0.00018598,2]
[357090641,1743712238119,-500.0,0.00018598,2]
[357090642,1743712238129,-500.0,0.00018598,2]
[357090643,1743712238138,-500.0,0.00018598,2]
[357090644,1743712238148,-500.0,0.00018598,2]
[357090645,1743712238158,-403.53798722,0.00018598,2]
[357090646,1743712238167,-245964.4416591,0.00018599,2]
[357090647,1743712238179,-1820.52989597,0.00018599,2]
[357090680,1743712240259,-691.52116,0.00018599,2]
[357090774,1743712243167,-2000.0,0.00018599,2]
[357090775,1743712243179,-315.21529519,0.00018599,2]
[357090791,1743712246292,-3000.0,0.00018599,2]
[357090792,1743712246352,-20509.19081854,0.00018599,2]
[357090805,1743713244142,-199.59862776,0.00016559,2]
[357090859,1743713432248,-500.0,0.00016559,2]
[357090860,1743713432258,-419.04650234,0.00017088,2]
[357090862,1743713432267,-12517.44636928,0.00017088,2]
[357090864,1743713432277,-300.0,0.00017089,2]
[357090866,1743713432286,-160.0,0.0001709,2]
[357090867,1743713432295,-254.56945343,0.0001709,2]
[357090869,1743713432304,-160.0,0.0001709,2]
[357090870,1743713432314,-917.58079811,0.00017108,2]
[357090908,1743713438065,-1333.25920189,0.00017108,2]
[357090909,1743713438075,-150.0,0.00017118,2]
[357090910,1743713438084,-542.0,0.00017118,2]
[357090911,1743713438093,-474.74079811,0.00017118,2]
[357090912,1743713438120,-1087.65420189,0.00017118,2]
[357090913,1743713438131,-200.0,0.00017127,2]
[357090914,1743713438142,-9030.38897235,0.00017137,2]
[357090941,1743713440480,-500.0,0.00017137,2]
[357090947,1743713443203,-401.0,0.00017118,2]
[357090948,1743713443212,-5635.60268522,0.00017137,2]
[357090981,1743713446175,-3563.08570473,0.00017137,2]
[357090982,1743713446185,-2250.84,0.00017382,2]
[357090983,1743713446194,-2250.84,0.00017656,2]
[357090984,1743713446204,-153.38087697,0.0001793,2]
[357091010,1743714636471,-201.606846,0.00014801,2]
[357091011,1743714636481,-70.46477768,0.00014951,2]
[357091012,1743714636583,-131.14206832,0.00014951,2]
[357091013,1743714636593,-6251.15758779,0.00016411,2]
[357091014,1743714636606,-2625.64621591,0.00016411,2]
[357091015,1743714636614,-300.0,0.00016865,2]
[357091016,1743714636623,-1051.59999999,0.00016866,2]
[357091018,1743714636632,-160.0,0.00016868,2]
[357091020,1743714636642,-5070.62078944,0.00016868,2]
[357091022,1743714636653,-412.755,0.00016868,2]
[357091025,1743714636665,-1829.34367484,0.00016868,2]
[357091038,1743714638226,-3851.14303734,0.00016868,2]
[357091039,1743714638284,-203.10672919,0.00016868,2]
[357091040,1743714638294,-500.0,0.00016869,2]
[357091041,1743714638303,-500.0,0.00016869,2]
[357091042,1743714638313,-500.0,0.00016869,2]
[357091043,1743714638322,-1963.1,0.00016869,2]
[357091044,1743714638331,-500.0,0.00016869,2]
[357091045,1743714638341,-500.0,0.00016869,2]
[357091046,1743714638350,-500.0,0.00016869,2]
[357091047,1743714638360,-500.0,0.00016869,2]
[357091048,1743714638371,-500.0,0.00016869,2]
[357091049,1743714638381,-500.0,0.00016869,2]
[357091050,1743714638391,-500.0,0.00016869,2]
[357091051,1743714638401,-500.0,0.00016869,2]
[357091052,1743714638410,-500.0,0.00016869,2]
[357091053,1743714638420,-500.0,0.00016869,2]
[357091054,1743714638429,-500.0,0.00016869,2]
[357091055,1743714638439,-500.0,0.00016869,2]
[357091056,1743714638450,-500.0,0.00016869,2]
[357091057,1743714638459,-160.0,0.00017091,2]
[357091058,1743714638469,-419.04650234,0.00017092,2]
[357091059,1743714638479,-150.0,0.00017118,2]
[357091060,1743714638489,-150.0,0.00017118,2]
[357091061,1743714638499,-150.0,0.00017118,2]
[357091062,1743714638509,-401.0,0.00017118,2]
[357091063,1743714638519,-500.0,0.00017143,2]
[357091064,1743714638530,-500.0,0.00017143,2]
[357091065,1743714638541,-500.0,0.00017143,2]
[357091066,1743714638551,-1963.1,0.00017143,2]
[357091067,1743714638561,-154.99,0.00017143,2]
[357091068,1743714638572,-319.84,0.00017416,2]
[357091069,1743714638584,-184.4,0.00017416,2]
[357091070,1743714638595,-500.0,0.00017416,2]
[357091071,1743714638605,-1963.1,0.00017416,2]
[357091072,1743714638615,-4604.1072091,0.00017653,3]
[357091073,1743714638624,-22713.86220948,0.00017653,3]
[357091074,1743714638634,-160.0,0.00017654,3]
[357091075,1743714638644,-500.0,0.0001769,2]
[357091076,1743714638655,-1963.1,0.0001769,2]
[357091077,1743714638664,-5209.00385035,0.000179,2]
[357091078,1743714638674,-500.0,0.00017964,2]
[357091079,1743714638683,-1963.1,0.00017964,2]
[357091080,1743714638693,-200.0,0.00018093,2]
[357091081,1743714638703,-500.0,0.00018098,2]
[357091082,1743714638713,-500.0,0.00018098,2]
[357091083,1743714638722,-500.0,0.00018098,2]
[357091084,1743714638732,-500.0,0.00018098,2]
[357091085,1743714638741,-500.0,0.00018098,2]
[357091086,1743714638751,-500.0,0.00018098,2]
[357091087,1743714638760,-500.0,0.00018098,2]
[357091088,1743714638769,-597.89836475,0.00018098,2]
[357091089,1743714638779,-500.0,0.00018098,2]
[357091090,1743714638788,-500.0,0.00018098,2]
[357091091,1743714638805,-500.0,0.00018098,2]
[357091092,1743714638817,-500.0,0.00018098,2]
[357091093,1743714638827,-500.0,0.00018098,2]
[357091094,1743714638836,-500.0,0.00018098,2]
[357091095,1743714638846,-500.0,0.00018098,2]
[357091096,1743714638856,-285.22496424,0.00018098,2]
[357091097,1743714638866,-293.04685146,0.00018103,2]
[357091098,1743714638875,-156981.54156449,0.00018104,2]
[357091099,1743714638890,-6696.90015969,0.00018104,2]
[357091100,1743714638902,-739.30559893,0.00018104,2]
[357091127,1743714640718,-247.49312925,0.00016699,2]
[357091128,1743714640728,-964.00363138,0.00018104,2]
[357091130,1743714640740,-796.76260512,0.00018104,2]
[357091133,1743714640772,-395.11512087,0.00018104,2]
[357091146,1743714643398,-5046.89807883,0.00018104,2]
[357091147,1743714643410,-1477.1051057,0.00018104,2]
[357091148,1743714643422,-695.0686426,0.00018104,2]
[357091149,1743714643453,-8349.57850423,0.00018104,2]
[357091176,1743714646569,-81976.87213953,0.00018104,2]
[357091177,1743714646580,-500.0,0.00018238,2]
[357091178,1743714646702,-1963.1,0.00018238,2]
[357091179,1743714646743,-510.9268234,0.00018333,2]
[357091180,1743714646752,-420.0,0.00018423,2]
[357091181,1743714646761,-500.0,0.00018512,2]
[357091182,1743714646771,-1963.1,0.00018512,2]
[357091183,1743714646780,-1588.0,0.00018599,2]
[357091184,1743714646789,-556.4,0.000186,5]
[357091185,1743714646798,-357.0,0.00018602,2]
[357091186,1743714646807,-151.0,0.00018698,2]
[357091187,1743714646816,-357.0,0.00018733,2]
[357091188,1743714646825,-318.0,0.00018733,2]
[357091189,1743714646834,-357.0,0.00018733,2]